fUSD/lending_fUSD_20260405
["ID","MTS","AMOUNT","RATE_DAILY","PERIOD"]
[419751950,1775353890823,-1691.5,0.00035726,9]
[419751951,1775353890833,-607.31,0.00035726,9]
[419751952,1775353891028,-500.0,0.00035726,9]
[419751953,1775353891049,-1224.7,0.00035726,9]
[419751954,1775353891059,-203.65716931,0.00035726,9]
[419751955,1775353891069,-500.0,0.00035726,9]
[419751956,1775353891078,-640.22058081,0.00035726,9]
[419751957,1775353891088,-500.0,0.00035726,9]
[419751958,1775353891098,-515.79,0.00035726,9]
[419751959,1775353891107,-500.0,0.00035726,9]
[419751960,1775353891116,-500.0,0.00035726,9]
[419751961,1775353891125,-741.31,0.00035726,9]
[419751962,1775353891135,-1564.62,0.00035726,9]
[419751963,1775353891144,-500.0,0.00035726,9]
[419751964,1775353891154,-771.83,0.00035726,9]
[419751965,1775353891163,-500.0,0.00035726,9]
[419751966,1775353891173,-500.0,0.00035726,9]
[419751967,1775353891182,-500.0,0.00035726,9]
[419751968,1775353891191,-673.03,0.00035726,9]
[419751969,1775353891201,-500.0,0.00035726,9]
[419751970,1775353891210,-836.87,0.00035726,9]
[419751971,1775353891220,-1148.23,0.00035726,9]
[419751972,1775353891230,-1146.93,0.00035726,9]
[419751973,1775353891239,-475.30007302,0.00035726,9]
[419751974,1775353891249,-774.75,0.00035726,9]
[419751975,1775353891259,-501.75441471,0.00035726,9]
[419751976,1775353891268,-576.94,0.00035726,9]
[419751977,1775353891277,-500.0,0.00035726,9]
[419751978,1775353891289,-766.02,0.00035726,9]
[419751979,1775353891299,-500.0,0.00035726,9]
[419751980,1775353891308,-707.67,0.00035726,9]
[419751981,1775353891318,-500.0,0.00035726,9]
[419751982,1775353891327,-679.76,0.00035726,9]
[419751983,1775353891336,-981.99,0.00035726,9]
[419751984,1775353891346,-500.0,0.00035726,9]
[419751985,1775353891356,-500.0,0.00035726,9]
[419751986,1775353891365,-1056.7,0.00035726,9]
[419751987,1775353891375,-151.11101193,0.00035726,9]
[419751988,1775353891385,-500.0,0.00035726,9]
[419751989,1775353891395,-500.0,0.00035726,9]
[419751990,1775353891405,-1536.24,0.00035726,9]
[419751991,1775353891415,-1227.27,0.00035726,9]
[419751992,1775353891425,-716.31,0.00035726,9]
[419751993,1775353891435,-500.0,0.00035726,9]
[419751994,1775353891445,-853.38,0.00035726,9]
[419751995,1775353891455,-500.0,0.00035726,9]
[419751996,1775353891465,-583.72050792,0.00035726,9]
[419751997,1775353891474,-500.0,0.00035726,9]
[419751998,1775353891484,-500.0,0.00035726,9]
[419751999,1775353891493,-1440.21,0.00035726,9]
[419752000,1775353891503,-1383.88,0.00035726,9]
[419752001,1775353891513,-530.63,0.00035726,9]
[419752002,1775353891522,-1349.47,0.00035726,9]
[419752003,1775353891532,-1386.53,0.00035726,9]
[419752004,1775353891542,-758.64,0.00035726,9]
[419752005,1775353891551,-1153.04,0.00035726,9]
[419752006,1775353891561,-2276.94,0.00035726,9]
[419752007,1775353891570,-500.0,0.00035726,9]
[419752008,1775353891580,-596.46,0.00035726,9]
[419752009,1775353891590,-500.0,0.00035726,9]
[419752010,1775353891599,-544.57868685,0.00035726,9]
[419752011,1775353891609,-500.0,0.00035726,2]
[419752012,1775353891619,-500.0,0.00035726,9]
[419752013,1775353891629,-500.0,0.00035726,9]
[419752014,1775353891638,-500.0,0.00035726,9]
[419752015,1775353891648,-500.0,0.00035726,2]
[419752016,1775353891658,-500.0,0.00035726,9]
[419752017,1775353891667,-500.0,0.00035726,9]
[419752018,1775353891677,-1239.84,0.00035726,9]
[419752019,1775353891686,-500.0,0.00035726,9]
[419752020,1775353891695,-158.11909486,0.00035726,9]
[419752021,1775353891705,-500.0,0.00035726,9]
[419752022,1775353891715,-500.0,0.00035726,9]
[419752023,1775353891725,-1055.2,0.00035726,9]
[419752024,1775353891734,-500.0,0.00035726,9]
[419752025,1775353891744,-500.0,0.00035726,9]
[419752026,1775353891753,-160.9249664,0.00035726,9]
[419752027,1775353891762,-500.0,0.00035726,9]
[419752028,1775353891772,-500.0,0.00035726,9]
[419752029,1775353891781,-500.0,0.00035726,9]
[419752030,1775353891791,-158.65157706,0.00035726,9]
[419752031,1775353891800,-1287.24,0.00035726,9]
[419752032,1775353891810,-500.0,0.00035726,9]
[419752033,1775353891819,-638.03,0.00035726,9]
[419752034,1775353891829,-3008.33,0.00035726,9]
[419752035,1775353891838,-2071.14,0.00035726,9]
[419752036,1775353891848,-803.7,0.00035726,9]
[419752037,1775353891858,-619.8,0.00035726,9]
[419752038,1775353891867,-2041.08,0.00035726,9]
[419752039,1775353891876,-500.0,0.00035726,9]
[419752040,1775353891885,-500.0,0.00035726,9]
[419752041,1775353891894,-500.0,0.00035726,9]
[419752042,1775353891903,-508.25,0.00035726,9]
[419752043,1775353891912,-510.19,0.00035726,9]
[419752044,1775353891922,-442.787,0.00035726,2]
[419752045,1775353891933,-500.0,0.00035726,9]
[419752046,1775353891943,-500.0,0.00035726,9]
[419752047,1775353891954,-150.22361948,0.00035726,9]
[419752048,1775353891963,-500.0,0.00035726,9]
[419752049,1775353891972,-500.0,0.00035726,9]
[419752050,1775353891982,-1051.89,0.00035726,9]
[419752051,1775353891991,-526.68,0.00035726,9]
[419752052,1775353892001,-2437.32,0.00035726,9]
[419752053,1775353892010,-3260.49,0.00035726,9]
[419752054,1775353892020,-704.89,0.00035726,9]
[419752055,1775353892029,-500.0,0.00035726,9]
[419752056,1775353892038,-500.0,0.00035726,9]
[419752057,1775353892048,-608.88,0.00035726,9]
[419752058,1775353892057,-500.0,0.00035726,9]
[419752059,1775353892066,-955.46,0.00035726,9]
[419752060,1775353892075,-294.03,0.00035726,9]
[419752061,1775353892085,-500.0,0.00035726,9]
[419752062,1775353892094,-500.0,0.00035726,9]
[419752063,1775353892103,-500.0,0.00035726,9]
[419752064,1775353892113,-500.0,0.00035726,9]
[419752065,1775353892123,-500.0,0.00035726,9]
[419752066,1775353892132,-500.0,0.00035726,9]
[419752067,1775353892142,-500.0,0.00035726,9]
[419752068,1775353892153,-500.0,0.00035726,9]
[419752069,1775353892162,-500.0,0.00035726,9]
[419752070,1775353892172,-500.0,0.00035726,9]
[419752071,1775353892181,-500.0,0.00035726,9]
[419752072,1775353892191,-500.0,0.00035726,9]
[419752073,1775353892201,-1358.66,0.00035726,9]
[419752074,1775353892211,-592.08,0.00035726,9]
[419752075,1775353892221,-1697.67,0.00035726,9]
[419752076,1775353892232,-500.0,0.00035726,9]
[419752077,1775353892243,-635.09010001,0.00035726,9]
[419752078,1775353892252,-165.63,0.00035726,9]
[419752079,1775353892262,-500.0,0.00035726,9]
[419752080,1775353892271,-500.0,0.00035726,9]
[419752081,1775353892280,-500.0,0.00035726,9]
[419752082,1775353892290,-349.32542802,0.00035726,9]
[419752083,1775353892300,-500.0,0.00035726,9]
[419752084,1775353892310,-500.0,0.00035726,9]
[419752085,1775353892319,-1091.66,0.00035726,9]
[419752086,1775353892329,-500.0,0.00035726,9]
[419752087,1775353892338,-544.04,0.00035726,9]
[419752088,1775353892349,-831.44,0.00035726,9]
[419752089,1775353892358,-1214.91,0.00035726,9]
[419752090,1775353892367,-2866.62,0.00035726,9]
[419752091,1775353892376,-500.0,0.00035726,9]
[419752092,1775353892386,-3539.01,0.00035726,9]
[419752093,1775353892396,-500.0,0.00035726,9]
[419752094,1775353892406,-445.6111254,0.00035726,9]
[419752095,1775353892415,-500.0,0.00035726,9]
[419752096,1775353892425,-1329.7,0.00035726,9]
[419752097,1775353892434,-670.83,0.00035726,9]
[419752098,1775353892444,-500.0,0.00035726,9]
[419752099,1775353892453,-1358.09,0.00035726,9]
[419752100,1775353892463,-345.84144289,0.00035726,9]
[419752101,1775353892472,-1136.28,0.00035726,9]
[419752102,1775353892481,-500.0,0.00035726,9]
[419752103,1775353892491,-500.0,0.00035726,9]
[419752104,1775353892500,-1461.21,0.00035726,9]
[419752105,1775353892510,-1254.14,0.00035726,9]
[419752106,1775353892519,-500.0,0.00035726,9]
[419752107,1775353892529,-500.0,0.00035726,9]
[419752108,1775353892538,-698.81,0.00035726,9]
[419752109,1775353892549,-2502.2,0.00035726,9]
[419752110,1775353892559,-2327.75,0.00035726,9]
[419752111,1775353892569,-637.21,0.00035726,9]
[419752112,1775353892579,-500.0,0.00035726,9]
[419752113,1775353892588,-1634.79,0.00035726,9]
[419752114,1775353892597,-3994.06,0.00035726,9]
[419752115,1775353892608,-1455.03,0.00035726,9]
[419752116,1775353892617,-500.0,0.00035726,9]
[419752117,1775353892627,-436.38,0.00035726,9]
[419752118,1775353892637,-500.0,0.00035726,9]
[419752119,1775353892646,-500.0,0.00035726,9]
[419752120,1775353892656,-500.0,0.00035726,9]
[419752121,1775353892666,-500.0,0.00035726,9]
[419752122,1775353892677,-500.0,0.00035726,9]
[419752123,1775353892686,-621.93973152,0.00035726,9]
[419752124,1775353892697,-685.7,0.00035726,9]
[419752125,1775353892707,-1051.5,0.00035726,9]
[419752126,1775353892717,-1299.88,0.00035726,9]
[419752127,1775353892726,-500.0,0.00035726,9]
[419752128,1775353892735,-500.0,0.00035726,9]
[419752129,1775353892745,-939.47,0.00035726,9]
[419752130,1775353892754,-151.92607453,0.00035726,9]
[419752131,1775353892764,-500.0,0.00035726,9]
[419752132,1775353892773,-1193.4,0.00035726,9]
[419752133,1775353892782,-644.0,0.00035726,9]
[419752134,1775353892792,-3084.67,0.00035726,9]
[419752135,1775353892801,-1667.1,0.00035726,9]
[419752136,1775353892810,-386.10657667,0.00035726,9]
[419752137,1775353892819,-500.0,0.00035726,9]
[419752138,1775353892830,-500.0,0.00035726,9]
[419752139,1775353892839,-920.66,0.00035726,9]
[419752140,1775353892849,-1893.19,0.00035726,9]
[419752141,1775353892858,-625.61,0.00035726,9]
[419752142,1775353892868,-500.0,0.00035726,9]
[419752143,1775353892877,-633.32,0.00035726,9]
[419752144,1775353892886,-807.75,0.00035726,9]
[419752145,1775353892895,-500.0,0.00035726,9]
[419752146,1775353892904,-500.0,0.00035726,9]
[419752147,1775353892913,-1427.78,0.00035726,9]
[419752148,1775353892923,-690.19,0.00035726,9]
[419752149,1775353892932,-1272.56,0.00035726,9]
[419752150,1775353892941,-1052.44,0.00035726,9]
[419752151,1775353892950,-538.34,0.00035726,9]
[419752152,1775353892959,-500.0,0.00035726,9]
[419752153,1775353892969,-500.0,0.00035726,9]
[419752154,1775353892978,-500.0,0.00035726,9]
[419752155,1775353892987,-500.0,0.00035726,9]
[419752156,1775353892997,-500.0,0.00035726,9]
[419752157,1775353893007,-500.9,0.00035726,9]
[419752158,1775353893016,-500.0,0.00035726,9]
[419752159,1775353893026,-500.0,0.00035726,9]
[419752160,1775353893035,-500.0,0.00035726,9]
[419752161,1775353893044,-500.0,0.00035726,9]
[419752162,1775353893054,-500.0,0.00035726,9]
[419752163,1775353893064,-500.0,0.00035726,9]
[419752164,1775353893074,-2912.67,0.00035726,2]
[419752165,1775353893083,-500.0,0.00035726,9]
[419752166,1775353893173,-500.0,0.00035726,9]
[419752167,1775353893183,-10738.04,0.00035726,9]
[419752168,1775353893193,-541.2,0.00035726,9]
[419752169,1775353893203,-1337.75,0.00035726,9]
[419752170,1775353893212,-772.25,0.00035726,9]
[419752171,1775353893222,-500.0,0.00035726,9]
[419752172,1775353893231,-795.31,0.00035726,9]
[419752173,1775353893240,-500.0,0.00035726,9]
[419752174,1775353893250,-500.0,0.00035726,9]
[419752175,1775353893259,-558.04,0.00035726,9]
[419752176,1775353893268,-1392.98,0.00035726,9]
[419752177,1775353893277,-513.71773818,0.00035726,9]
[419752178,1775353893286,-664.18,0.00035726,9]
[419752179,1775353893295,-841.1,0.00035726,9]
[419752180,1775353893305,-525.34,0.00035726,9]
[419752181,1775353893314,-824.26,0.00035726,9]
[419752182,1775353893323,-319.85364935,0.00035726,9]
[419752183,1775353893332,-500.0,0.00035726,9]
[419752184,1775353893342,-1796.32,0.00035726,9]
[419752185,1775353893351,-606.94633319,0.00035726,9]
[419752186,1775353893361,-500.0,0.00035726,9]
[419752187,1775353893370,-500.0,0.00035726,9]
[419752188,1775353893379,-500.0,0.00035726,9]
[419752189,1775353893388,-1340.61,0.00035726,9]
[419752190,1775353893398,-518.44,0.00035726,9]
[419752191,1775353893407,-605.99,0.00035726,9]
[419752192,1775353893417,-500.0,0.00035726,9]
[419752193,1775353893428,-5990.58,0.00035726,9]
[419752194,1775353893438,-500.0,0.00035726,9]
[419752195,1775353893447,-500.0,0.00035726,9]
[419752196,1775353893457,-783.46,0.00035726,9]
[419752197,1775353893466,-500.0,0.00035726,9]
[419752198,1775353893475,-2102.66,0.00035726,9]
[419752199,1775353893484,-736.64,0.00035726,9]
[419752200,1775353893494,-1667.41,0.00035726,9]
[419752201,1775353893503,-1865.67,0.00035726,9]
[419752202,1775353893512,-500.0,0.00035726,9]
[419752203,1775353893524,-500.0,0.00035726,9]
[419752204,1775353893536,-4194.52,0.00035726,9]
[419752205,1775353893546,-500.0,0.00035726,9]
[419752206,1775353893556,-500.0,0.00035726,9]
[419752207,1775353893567,-5124.18,0.00035726,9]
[419752208,1775353893576,-515.70490669,0.00035726,9]
[419752209,1775353893586,-500.0,0.00035726,9]
[419752210,1775353893597,-500.0,0.00035726,9]
[419752211,1775353893609,-4129.13,0.00035726,9]
[419752212,1775353893620,-709.45,0.00035726,9]
[419752213,1775353893630,-4146.43,0.00035726,9]
[419752214,1775353893641,-500.0,0.00035726,9]
[419752215,1775353893652,-500.0,0.00035726,9]
[419752216,1775353893661,-920.0,0.00035726,9]
[419752217,1775353893670,-500.0,0.00035726,9]
[419752218,1775353893680,-500.0,0.00035726,9]
[419752219,1775353893691,-3691.15,0.00035726,9]
[419752220,1775353893700,-2029.32,0.00035726,9]
[419752221,1775353893709,-2926.58,0.00035726,9]
[419752222,1775353893719,-500.0,0.00035726,9]
[419752223,1775353893728,-746.91,0.00035726,9]
[419752224,1775353893738,-2342.63,0.00035726,9]
[419752225,1775353893748,-3041.42,0.00035726,9]
[419752226,1775353893757,-500.0,0.00035726,9]
[419752227,1775353893767,-500.0,0.00035726,9]
[419752228,1775353893776,-199.8441973,0.00035726,9]
[419752229,1775353893786,-500.0,0.00035726,5]
[419752230,1775353893795,-500.0,0.00035726,9]
[419752231,1775353893804,-500.0,0.00035726,9]
[419752232,1775353893814,-712.11,0.00035726,9]
[419752233,1775353893824,-2582.16,0.00035726,9]
[419752234,1775353893835,-2264.77,0.00035726,9]
[419752235,1775353893845,-500.0,0.00035726,9]
[419752236,1775353893855,-300.0,0.00035726,2]
[419752237,1775353893865,-758.41,0.00035726,9]
[419752238,1775353893874,-3561.26,0.00035726,9]
[419752239,1775353893884,-500.0,0.00035726,9]
[419752240,1775353893895,-500.0,0.00035726,9]
[419752241,1775353893904,-1033.1,0.00035726,9]
[419752242,1775353893913,-515.85,0.00035726,9]
[419752243,1775353893922,-500.0,0.00035726,9]
[419752244,1775353893931,-500.0,0.00035726,9]
[419752245,1775353893940,-175.81820127,0.00035726,9]
[419752246,1775353893950,-639.87,0.00035726,9]
[419752247,1775353893959,-500.0,0.00035726,9]
[419752248,1775353893968,-500.0,0.00035726,9]
[419752249,1775353893978,-195.45978373,0.00035726,9]
[419752250,1775353893987,-500.0,0.00035726,9]
[419752251,1775353893997,-500.0,0.00035726,9]
[419752252,1775353894006,-436.85070423,0.00035726,9]
[419752253,1775353894016,-681.63,0.00035726,9]
[419752254,1775353894026,-1289.51,0.00035726,9]
[419752255,1775353894035,-500.0,0.00035726,9]
[419752256,1775353894044,-1806.38,0.00035726,9]
[419752257,1775353894054,-875.99,0.00035726,9]
[419752258,1775353894063,-1405.54,0.00035726,9]
[419752259,1775353894073,-1621.0,0.00035726,9]
[419752260,1775353894082,-502.14,0.00035726,9]
[419752261,1775353894091,-1112.73,0.00035726,9]
[419752262,1775353894101,-500.0,0.00035726,9]
[419752263,1775353894111,-3180.89,0.00035726,9]
[419752264,1775353894120,-500.0,0.00035726,9]
[419752265,1775353894130,-500.0,0.00035726,9]
[419752266,1775353894140,-949.71,0.00035726,9]
[419752267,1775353894149,-500.0,0.00035726,9]
[419752268,1775353894159,-1307.46,0.00035726,9]
[419752269,1775353894169,-216.37593864,0.00035726,9]
[419752270,1775353894178,-2516.51,0.00035726,9]
[419752271,1775353894188,-3203.28,0.00035726,9]
[419752272,1775353894197,-1602.86,0.00035726,9]
[419752273,1775353894207,-163.14122187,0.00035726,9]
[419752274,1775353894216,-500.0,0.00035726,9]
[419752275,1775353894226,-500.0,0.00035726,9]
[419752276,1775353894236,-691.8,0.00035726,9]
[419752277,1775353894245,-854.68,0.00035726,9]
[419752278,1775353894255,-500.0,0.00035726,9]
[419752279,1775353894265,-1045.08,0.00035726,9]
[419752280,1775353894275,-500.0,0.00035726,9]
[419752281,1775353894285,-965.3,0.00035726,9]
[419752282,1775353894295,-500.0,0.00035726,9]
[419752283,1775353894304,-501.12,0.00035726,9]
[419752284,1775353894314,-500.0,0.00035726,9]
[419752285,1775353894324,-2190.31,0.00035726,9]
[419752286,1775353894334,-500.0,0.00035726,9]
[419752287,1775353894344,-500.0,0.00035726,9]
[419752288,1775353894354,-870.36,0.00035726,9]
[419752289,1775353894363,-500.0,0.00035726,9]
[419752290,1775353894373,-1332.85,0.00035726,9]
[419752291,1775353894382,-500.0,0.00035726,9]
[419752292,1775353894391,-714.3,0.00035726,9]
[419752293,1775353894401,-500.0,0.00035726,9]
[419752294,1775353894411,-999.6,0.00035726,9]
[419752295,1775353894420,-500.0,0.00035726,9]
[419752296,1775353894429,-500.0,0.00035726,9]
[419752297,1775353894439,-1465.88,0.00035726,9]
[419752298,1775353894448,-1995.72,0.00035726,9]
[419752299,1775353894458,-774.58,0.00035726,9]
[419752300,1775353894467,-500.0,0.00035726,9]
[419752301,1775353894477,-1866.9,0.00035726,9]
[419752302,1775353894487,-1935.95,0.00035726,9]
[419752303,1775353894496,-4213.24,0.00035726,9]
[419752304,1775353894506,-634.8,0.00035726,9]
[419752305,1775353894517,-500.0,0.00035726,9]
[419752306,1775353894529,-1793.43,0.00035726,9]
[419752307,1775353894540,-1265.83,0.00035726,9]
[419752308,1775353894551,-840.33,0.00035726,9]
[419752309,1775353894561,-565.36,0.00035726,9]
[419752310,1775353894572,-847.44,0.00035726,9]
[419752311,1775353894583,-629.26,0.00035726,9]
[419752312,1775353894595,-500.0,0.00035726,9]
[419752313,1775353894606,-969.68,0.00035726,9]
[419752314,1775353894619,-910.34,0.00035726,9]
[419752315,1775353894629,-500.0,0.00035726,9]
[419752316,1775353894639,-500.0,0.00035726,9]
[419752317,1775353894649,-500.0,0.00035726,9]
[419752318,1775353894659,-2177.01,0.00035726,9]
[419752319,1775353894669,-207.73341961,0.00035726,9]
[419752320,1775353894679,-1309.56,0.00035726,9]
[419752321,1775353894689,-1221.11,0.00035726,9]
[419752322,1775353894700,-1087.69,0.00035726,9]
[419752323,1775353894711,-511.2,0.00035726,9]
[419752324,1775353894721,-838.62,0.00035726,9]
[419752325,1775353894732,-500.0,0.00035726,9]
[419752326,1775353894741,-1106.79,0.00035726,9]
[419752327,1775353894751,-1272.17,0.00035726,9]
[419752328,1775353894761,-5932.49,0.00035726,9]
[419752329,1775353894771,-653.79,0.00035726,9]
[419752330,1775353894781,-1781.96,0.00035726,9]
[419752331,1775353894791,-500.0,0.00035726,9]
[419752332,1775353894800,-500.0,0.00035726,9]
[419752333,1775353894810,-606.73,0.00035726,9]
[419752334,1775353894820,-1687.57,0.00035726,9]
[419752335,1775353894829,-1038.58,0.00035726,9]
[419752336,1775353894839,-1420.14,0.00035726,9]
[419752337,1775353894848,-500.0,0.00035726,9]
[419752338,1775353894857,-500.0,0.00035726,9]
[419752339,1775353894867,-542.23,0.00035726,9]
[419752340,1775353894877,-3304.27,0.00035726,9]
[419752341,1775353894888,-500.0,0.00035726,9]
[419752342,1775353894897,-160.25120584,0.00035726,9]
[419752343,1775353894907,-2317.73,0.00035726,9]
[419752344,1775353894916,-500.0,0.00035726,9]
[419752345,1775353894927,-500.0,0.00035726,9]
[419752346,1775353894937,-600.48,0.00035726,9]
[419752347,1775353894946,-500.0,0.00035726,9]
[419752348,1775353894955,-162.94389276,0.00035726,9]
[419752349,1775353894965,-1700.82,0.00035726,9]
[419752350,1775353894974,-1559.66,0.00035726,9]
[419752351,1775353894984,-2837.2,0.00035726,9]
[419752352,1775353894994,-1459.33,0.00035726,9]
[419752353,1775353895003,-500.0,0.00035726,9]
[419752354,1775353895013,-392.6076698,0.00035726,9]
[419752355,1775353895024,-2153.71,0.00035726,9]
[419752356,1775353895034,-1499.67,0.00035726,9]
[419752357,1775353895043,-2097.77,0.00035726,9]
[419752358,1775353895053,-641.61,0.00035726,9]
[419752359,1775353895063,-500.0,0.00035726,9]
[419752360,1775353895072,-500.0,0.00035726,9]
[419752361,1775353895082,-500.0,0.00035726,9]
[419752362,1775353895092,-1322.14,0.00035726,9]
[419752363,1775353895102,-1002.26,0.00035726,9]
[419752364,1775353895112,-500.0,0.00035726,9]
[419752365,1775353895121,-500.0,0.00035726,9]
[419752366,1775353895130,-507.23,0.00035726,9]
[419752367,1775353895140,-2468.61,0.00035726,9]
[419752368,1775353895150,-641.99171207,0.00035726,9]
[419752369,1775353895160,-586.89518181,0.00035726,9]
[419752370,1775353895169,-539.12,0.00035726,9]
[419752371,1775353895179,-880.26,0.00035726,9]
[419752372,1775353895188,-2403.51,0.00035726,9]
[419752373,1775353895198,-500.0,0.00035726,9]
[419752374,1775353895208,-500.0,0.00035726,9]
[419752375,1775353895218,-872.48,0.00035726,9]
[419752376,1775353895227,-500.0,0.00035726,9]
[419752377,1775353895237,-363.43134332,0.00035726,9]
[419752378,1775353895247,-924.79,0.00035726,9]
[419752379,1775353895256,-565.63,0.00035726,9]
[419752380,1775353895266,-1079.27,0.00035726,9]
[419752381,1775353895276,-549.47,0.00035726,9]
[419752382,1775353895286,-2169.07,0.00035726,9]
[419752383,1775353895296,-1100.54,0.00035726,9]
[419752384,1775353895306,-500.0,0.00035726,9]
[419752385,1775353895316,-500.0,0.00035726,9]
[419752386,1775353895326,-811.05,0.00035726,9]
[419752387,1775353895336,-856.97,0.00035726,9]
[419752388,1775353895346,-500.0,0.00035726,9]
[419752389,1775353895354,-1509.99,0.00035726,9]
[419752390,1775353895364,-838.66,0.00035726,9]
[419752391,1775353895374,-2703.73,0.00035726,9]
[419752392,1775353895384,-864.13,0.00035726,9]
[419752393,1775353895394,-868.79,0.00035726,9]
[419752394,1775353895404,-1159.36,0.00035726,9]
[419752395,1775353895414,-500.0,0.00035726,9]
[419752396,1775353895425,-686.5,0.00035726,9]
[419752397,1775353895434,-656.0,0.00035726,9]
[419752398,1775353895444,-1230.3,0.00035726,9]
[419752399,1775353895454,-897.5,0.00035726,9]
[419752400,1775353895464,-1515.36,0.00035726,9]
[419752401,1775353895474,-2186.07,0.00035726,9]
[419752402,1775353895484,-1632.89,0.00035726,9]
[419752403,1775353895494,-536.49,0.00035726,9]
[419752404,1775353895505,-2291.93,0.00035726,9]
[419752405,1775353895514,-1045.49,0.00035726,9]
[419752406,1775353895524,-202.71980843,0.00035726,9]
[419752407,1775353895534,-1716.91,0.00035726,9]
[419752408,1775353895544,-500.0,0.00035726,2]
[419752409,1775353895554,-500.0,0.00035726,9]
[419752410,1775353895564,-1057.04,0.00035726,9]
[419752411,1775353895574,-500.0,0.00035726,9]
[419752412,1775353895585,-597.48783743,0.00035726,9]
[419752413,1775353895595,-500.0,0.00035726,9]
[419752414,1775353895605,-717.81,0.00035726,9]
[419752415,1775353895616,-583.26615071,0.00035726,9]
[419752416,1775353895627,-633.28,0.00035726,9]
[419752417,1775353895638,-500.0,0.00035726,9]
[419752418,1775353895648,-728.1,0.00035726,9]
[419752419,1775353895659,-2396.23,0.00035726,9]
[419752420,1775353895668,-1150.01,0.00035726,9]
[419752421,1775353895678,-1979.07,0.00035726,9]
[419752422,1775353895687,-946.76,0.00035726,9]
[419752423,1775353895697,-534.35,0.00035726,9]
[419752424,1775353895707,-1460.48,0.00035726,9]
[419752425,1775353895717,-1726.02,0.00035726,9]
[419752426,1775353895726,-798.7,0.00035726,9]
[419752427,1775353895736,-1309.46,0.00035726,9]
[419752428,1775353895746,-799.89,0.00035726,9]
[419752429,1775353895755,-500.0,0.00035726,2]
[419752430,1775353895765,-2020.26,0.00035726,9]
[419752431,1775353895775,-500.0,0.00035726,9]
[419752432,1775353895784,-1464.74,0.00035726,9]
[419752433,1775353895794,-705.6,0.00035726,9]
[419752434,1775353895804,-2827.98,0.00035726,9]
[419752435,1775353895815,-4660.5,0.00035726,9]
[419752436,1775353895825,-500.0,0.00035726,9]
[419752437,1775353895836,-1829.34,0.00035726,9]
[419752438,1775353895847,-1241.08,0.00035726,9]
[419752439,1775353895858,-1699.1,0.00035726,9]
[419752440,1775353895868,-593.69,0.00035726,9]
[419752441,1775353896058,-500.0,0.00035726,9]
[419752442,1775353896068,-500.0,0.00035726,2]
[419752443,1775353896078,-1516.98,0.00035726,9]
[419752444,1775353896087,-500.0,0.00035726,9]
[419752445,1775353896096,-823.21,0.00035726,9]
[419752446,1775353896105,-500.0,0.00035726,9]
[419752447,1775353896115,-2031.37,0.00035726,9]
[419752448,1775353896125,-500.0,0.00035726,9]
[419752449,1775353896136,-192.93492001,0.00035726,9]